fUSD/lending_fUSD_20250109
["ID","MTS","AMOUNT","RATE_DAILY","PERIOD"]
[348259949,1736423450401,-684.82,0.00011639,2]
[348259950,1736423450410,-500.0,0.00011639,2]
[348259951,1736423450420,-500.0,0.00011639,2]
[348259952,1736423450430,-500.0,0.00011639,2]
[348259953,1736423450440,-636.05,0.00011639,2]
[348259954,1736423450451,-500.0,0.00011639,2]
[348259955,1736423450461,-507.35,0.00011639,2]
[348259956,1736423450470,-592.38,0.00011639,2]
[348259957,1736423450481,-171.20017654,0.00011639,2]
[348259958,1736423450491,-500.0,0.00011639,2]
[348259959,1736423450500,-1149.82,0.0001164,2]
[348259960,1736423450511,-500.0,0.0001164,2]
[348259961,1736423450522,-230.98422472,0.0001164,2]
[348259962,1736423450531,-500.0,0.0001164,2]
[348259963,1736423450541,-819.27,0.0001164,2]
[348259964,1736423450551,-500.0,0.0001164,2]
[348259965,1736423450561,-500.0,0.0001164,2]
[348259966,1736423450571,-500.0,0.0001164,2]
[348259967,1736423450581,-500.0,0.0001164,2]
[348259968,1736423450591,-588.56,0.0001164,2]
[348259969,1736423450600,-500.0,0.0001164,2]
[348259970,1736423450609,-500.0,0.0001164,2]
[348259971,1736423450619,-1170.51,0.0001164,2]
[348259972,1736423450629,-500.0,0.0001164,2]
[348259973,1736423450638,-1156.24,0.0001164,2]
[348259974,1736423450648,-500.0,0.0001164,2]
[348259975,1736423450657,-500.0,0.0001164,2]
[348259976,1736423450667,-500.0,0.0001164,2]
[348259977,1736423450677,-500.0,0.0001164,2]
[348259978,1736423450687,-500.0,0.00011641,2]
[348259979,1736423450697,-500.0,0.00011641,2]
[348259980,1736423450707,-500.0,0.00011641,2]
[348259981,1736423450719,-500.0,0.00011641,2]
[348259982,1736423450730,-500.0,0.00011641,2]
[348259983,1736423450740,-507.54,0.00011641,2]
[348259984,1736423450750,-750.84,0.00011641,2]
[348259985,1736423450761,-500.0,0.00011641,2]
[348259986,1736423450771,-634.34,0.00011641,2]
[348259987,1736423450780,-2622.49,0.00011641,2]
[348259988,1736423450790,-584.34,0.00011641,2]
[348259989,1736423450800,-1454.61,0.00011641,2]
[348259990,1736423450810,-500.0,0.00011641,2]
[348259991,1736423450820,-500.0,0.00011641,2]
[348259992,1736423450830,-500.0,0.00011641,2]
[348259993,1736423450841,-500.0,0.00011641,2]
[348259994,1736423450851,-720.41,0.00011641,2]
[348259995,1736423450861,-1057.26,0.00011641,2]
[348259996,1736423450871,-958.82,0.00011641,2]
[348259997,1736423450881,-210.78867919,0.00011659,2]
[348259998,1736423450891,-720.59,0.00011713,2]
[348259999,1736423450901,-705.64,0.00011713,2]
[348260000,1736423450913,-569.710804,0.0001172,2]
[348260001,1736423450924,-502.235295,0.0001172,2]
[348260002,1736423450934,-946.29,0.0001172,2]
[348260003,1736423450945,-1333.84,0.0001172,2]
[348260004,1736423450955,-500.0,0.0001172,2]
[348260005,1736423450965,-500.0,0.0001172,2]
[348260006,1736423450975,-624.57,0.0001172,2]
[348260007,1736423450985,-632.88,0.0001172,2]
[348260008,1736423450997,-500.0,0.0001172,2]
[348260009,1736423451009,-1010.4,0.0001172,2]
[348260010,1736423451019,-1364.68,0.0001172,2]
[348260011,1736423451028,-595.42,0.0001172,2]
[348260012,1736423451038,-210.78867919,0.00011728,2]
[348260013,1736423451048,-462.0610035,0.0001176,2]
[348260014,1736423451057,-210.78867919,0.00011797,2]
[348260015,1736423451067,-2151.912,0.00011818,2]
[348260016,1736423451077,-174.785,0.00011818,2]
[348260017,1736423451086,-3000.0,0.0001188,2]
[348260018,1736423451096,-500.0,0.00011904,2]
[348260019,1736423451106,-2000.0,0.00011904,2]
[348260020,1736423451115,-500.0,0.00011904,2]
[348260021,1736423451125,-200.0,0.00011904,2]
[348260022,1736423451134,-500.0,0.00011913,2]
[348260023,1736423451144,-500.0,0.00011913,2]
[348260024,1736423451154,-420.81366143,0.00011913,2]
[348260025,1736423451164,-500.0,0.00011913,2]
[348260026,1736423451173,-532.02,0.00011913,2]
[348260027,1736423451183,-500.0,0.00011913,2]
[348260028,1736423451193,-500.0,0.00011913,2]
[348260029,1736423451203,-500.0,0.00011913,2]
[348260030,1736423451212,-500.0,0.00011913,2]
[348260031,1736423451221,-546.82,0.00011913,2]
[348260032,1736423451231,-500.0,0.00011913,2]
[348260033,1736423451240,-500.0,0.00011913,2]
[348260034,1736423451249,-500.0,0.00011913,2]
[348260035,1736423451259,-684.82,0.00011913,2]
[348260036,1736423451269,-500.0,0.00011913,2]
[348260037,1736423451278,-500.0,0.00011913,2]
[348260038,1736423451288,-500.0,0.00011913,2]
[348260039,1736423451298,-636.05,0.00011913,2]
[348260040,1736423451308,-500.0,0.00011913,2]
[348260041,1736423451317,-507.35,0.00011913,2]
[348260042,1736423451327,-592.38,0.00011913,2]
[348260043,1736423451337,-440.12205273,0.00011913,2]
[348260044,1736423451346,-1149.82,0.00011914,2]
[348260045,1736423451356,-500.0,0.00011914,2]
[348260046,1736423451366,-391.44227666,0.00011914,2]
[348260047,1736423451375,-819.27,0.00011914,2]
[348260048,1736423451385,-500.0,0.00011914,2]
[348260049,1736423451394,-500.0,0.00011914,2]
[348260050,1736423451405,-500.0,0.00011914,2]
[348260051,1736423451414,-500.0,0.00011914,2]
[348260052,1736423451424,-588.56,0.00011914,2]
[348260053,1736423451433,-500.0,0.00011914,2]
[348260054,1736423451443,-500.0,0.00011914,2]
[348260055,1736423451453,-1170.51,0.00011914,2]
[348260056,1736423451462,-500.0,0.00011914,2]
[348260057,1736423451473,-1156.24,0.00011914,2]
[348260058,1736423451482,-500.0,0.00011914,2]
[348260059,1736423451492,-500.0,0.00011914,2]
[348260060,1736423451664,-500.0,0.00011914,2]
[348260061,1736423451673,-500.0,0.00011914,2]
[348260062,1736423451682,-500.0,0.00011915,2]
[348260063,1736423451690,-500.0,0.00011915,2]
[348260064,1736423451700,-500.0,0.00011915,2]
[348260065,1736423451710,-500.0,0.00011915,2]
[348260066,1736423451719,-500.0,0.00011915,2]
[348260067,1736423451729,-507.54,0.00011915,2]
[348260068,1736423451738,-750.84,0.00011915,2]
[348260069,1736423451747,-500.0,0.00011915,2]
[348260070,1736423451757,-634.34,0.00011915,2]
[348260071,1736423451766,-2622.49,0.00011915,2]
[348260072,1736423451775,-584.34,0.00011915,2]
[348260073,1736423451785,-1454.61,0.00011915,2]
[348260074,1736423451794,-500.0,0.00011915,2]
[348260075,1736423451803,-500.0,0.00011915,2]
[348260076,1736423451813,-500.0,0.00011915,2]
[348260077,1736423451822,-500.0,0.00011915,2]
[348260078,1736423451831,-720.41,0.00011915,2]
[348260079,1736423451841,-1057.26,0.00011915,2]
[348260080,1736423451850,-958.82,0.00011915,2]
[348260081,1736423451859,-150.0,0.00011928,2]
[348260082,1736423451869,-720.59,0.00011987,2]
[348260083,1736423451878,-705.64,0.00011987,2]
[348260084,1736423451887,-569.710804,0.00011994,2]
[348260085,1736423451896,-502.235295,0.00011994,2]
[348260086,1736423451908,-946.29,0.00011994,2]
[348260087,1736423451917,-176.435235,0.00011994,2]
[348260088,1736423451927,-1333.84,0.00011994,2]
[348260089,1736423451936,-176.435234,0.00011994,2]
[348260090,1736423451946,-500.0,0.00011994,2]
[348260091,1736423451955,-500.0,0.00011994,2]
[348260092,1736423451965,-624.57,0.00011994,2]
[348260093,1736423451975,-632.88,0.00011994,2]
[348260094,1736423451985,-500.0,0.00011994,2]
[348260095,1736423451994,-1010.4,0.00011994,2]
[348260096,1736423452004,-1364.68,0.00011994,2]
[348260097,1736423452014,-595.42,0.00011994,2]
[348260098,1736423452024,-3145.22092727,0.00011998,3]
[348260099,1736423452034,-500.0,0.00011999,2]
[348260100,1736423452046,-500.0,0.00011999,2]
[348260101,1736423452056,-500.0,0.00011999,2]
[348260102,1736423452065,-500.0,0.00011999,2]
[348260103,1736423452075,-999.0,0.00011999,2]
[348260104,1736423452085,-500.0,0.00011999,2]
[348260105,1736423452095,-1456.0,0.00012,2]
[348260106,1736423452104,-811338.18457363,0.00012,2]
[348260107,1736423452360,-500.0,9.995e-05,2]
[348260108,1736423452369,-2691.51728882,0.00012,2]
[348260109,1736423452391,-210.78867919,0.00011866,2]
[348260110,1736423452400,-814.17902701,0.00012,2]
[348260111,1736423452411,-1429.7283,0.00012,2]
[348260112,1736423452422,-254.10092309,0.00012,2]
[348260113,1736423452676,-500.0,9.995e-05,2]
[348260114,1736423452686,-500.0,9.995e-05,2]
[348260115,1736423452696,-500.0,0.00010269,2]
[348260116,1736423452705,-210.78867919,0.00011934,2]
[348260117,1736423452715,-1599.13526647,0.00012,2]
[348260118,1736423452726,-2192.2847638,0.00012,2]
[348260119,1736423452737,-7685.23853375,0.00012,2]
[348260120,1736423452755,-768.89942114,0.00012,2]
[348260121,1736423452768,-177960.00003,0.00012,2]
[348260122,1736423452780,-677930.4866057,0.00012,2]
[348260123,1736423452790,-15163.60897053,0.00012,2]
[348260124,1736423452799,-1070.05,0.00012,2]
[348260125,1736423452808,-500.0,0.00012,2]
[348260126,1736423452817,-188.13873663,0.00012,2]
[348260127,1736423452826,-2340.0,0.00012,2]
[348260128,1736423452836,-81180.99915324,0.00012,2]
[348260129,1736423453100,-500.0,9.995e-05,2]
[348260130,1736423453109,-120.30375745,9.995e-05,2]
[348260131,1736423453121,-379.69624255,9.995e-05,2]
[348260132,1736423453131,-500.0,9.995e-05,2]
[348260133,1736423453140,-500.0,0.00010269,2]
[348260134,1736423453150,-234.24960507,0.00010269,2]
[348260135,1736423453161,-265.75039493,0.00010269,2]
[348260136,1736423453171,-2760.21917196,0.00012,2]
[348260137,1736423453183,-4423.04168,0.00012,2]
[348260138,1736423453194,-17766.9816,0.00012,2]
[348260139,1736423453205,-64763.23025,0.00012,2]
[348260140,1736423453232,-285.56665977,0.00012,2]
[348260141,1736423453244,-1464.83838803,0.00012,2]
[348260142,1736423453257,-119082.92701892,0.00012,2]
[348260143,1736423453268,-355.64993399,0.00012,2]
[348260144,1736423453279,-606.36234461,0.00012,2]
[348260145,1736423455734,2100.08848305,0.0002001,120]
[348260146,1736423579624,468.0,8e-05,2]
[348260149,1736424076275,645.9,8.219e-05,2]
[348260163,1736424631601,-374.13139,8.955e-05,2]
[348260164,1736424631611,-468.0,9e-05,2]
[348260165,1736424631620,-1000.0,9.043e-05,2]
[348260166,1736424631631,-1479.07995056,9.09e-05,2]
[348260167,1736424631641,-4755.85579017,9.09e-05,2]
[348260168,1736424631651,-8512.37,9.09e-05,2]
[348260169,1736424631660,-278.91,9.142e-05,2]
[348260170,1736424631670,-781.63,9.174e-05,2]
[348260171,1736424631679,-200.0,9.178e-05,2]
[348260172,1736424631688,-1289.41,9.183e-05,2]
[348260173,1736424631698,-504.91473213,9.335e-05,2]
[348260174,1736424631708,-23900.0,9.336e-05,2]
[348260175,1736424631718,-1123.91,9.498e-05,2]
[348260176,1736424631727,-171.61,9.543e-05,2]
[348260177,1736424631737,-163.4,9.631e-05,2]
[348260178,1736424631748,-250.0,9.665e-05,2]
[348260179,1736424631757,-250.0,9.681e-05,2]
[348260180,1736424631766,-3561.07,9.681e-05,2]
[348260181,1736424631776,-311.523,9.894e-05,2]
[348260182,1736424631785,-31578.9565,9.895e-05,2]
[348260183,1736424631794,-1250.0,9.895e-05,2]
[348260184,1736424631804,-1250.0,9.895e-05,2]
[348260185,1736424631813,-500.0,9.994e-05,2]
[348260186,1736424631822,-500.0,9.994e-05,2]
[348260187,1736424631832,-500.0,9.994e-05,2]
[348260188,1736424631841,-500.0,9.994e-05,2]
[348260189,1736424631851,-500.0,9.994e-05,2]
[348260190,1736424631860,-500.0,9.994e-05,2]
[348260191,1736424631870,-500.0,9.994e-05,2]
[348260192,1736424631879,-500.0,9.994e-05,2]
[348260193,1736424631888,-500.0,9.994e-05,2]
[348260194,1736424631897,-500.0,9.994e-05,2]
[348260195,1736424631906,-500.0,9.994e-05,2]
[348260196,1736424631916,-500.0,9.994e-05,2]
[348260197,1736424631925,-500.0,9.994e-05,2]
[348260198,1736424631934,-500.0,9.994e-05,2]
[348260199,1736424631944,-500.0,9.994e-05,2]
[348260200,1736424631953,-500.0,9.994e-05,2]
[348260201,1736424631962,-500.0,9.994e-05,2]
[348260202,1736424631972,-500.0,9.994e-05,2]
[348260203,1736424631981,-500.0,9.994e-05,2]
[348260204,1736424631992,-500.0,9.994e-05,2]
[348260205,1736424632002,-500.0,9.994e-05,2]
[348260206,1736424632011,-500.0,9.994e-05,2]
[348260207,1736424632021,-500.0,9.994e-05,2]
[348260208,1736424632030,-500.0,9.994e-05,2]
[348260209,1736424632039,-500.0,9.994e-05,2]
[348260210,1736424632049,-500.0,9.994e-05,2]
[348260211,1736424632058,-500.0,9.994e-05,2]
[348260212,1736424632067,-500.0,9.994e-05,2]
[348260213,1736424632077,-500.0,9.994e-05,2]
[348260214,1736424632087,-500.0,9.994e-05,2]
[348260215,1736424632097,-500.0,9.994e-05,2]
[348260216,1736424632106,-500.0,9.994e-05,2]
[348260217,1736424632116,-500.0,9.994e-05,2]
[348260218,1736424632125,-500.0,9.994e-05,2]
[348260219,1736424632134,-500.0,9.994e-05,2]
[348260221,1736424632144,-500.0,9.994e-05,2]
[348260223,1736424632155,-500.0,9.994e-05,2]
[348260225,1736424632165,-500.0,9.994e-05,2]
[348260227,1736424632176,-288.98859087,9.994e-05,2]
[348260229,1736424632188,-211.01140913,9.994e-05,2]
[348260231,1736424632199,-500.0,9.994e-05,2]
[348260233,1736424632208,-184.80364483,9.994e-05,2]
[348260237,1736424632236,-315.19635517,9.994e-05,2]
[348260239,1736424632247,-500.0,9.994e-05,2]
[348260241,1736424632257,-500.0,9.994e-05,2]
[348260243,1736424632266,-500.0,9.994e-05,2]
[348260245,1736424632277,-500.0,9.994e-05,2]
[348260247,1736424632286,-500.0,9.994e-05,2]
[348260249,1736424632295,-155.04987663,9.994e-05,2]
[348260251,1736424632306,-344.95012337,9.994e-05,2]
[348260253,1736424632318,-500.0,9.994e-05,2]
[348260255,1736424632327,-500.0,9.994e-05,2]
[348260257,1736424632336,-242.94446846,9.994e-05,2]
[348260260,1736424632348,-257.05553154,9.994e-05,2]
[348260261,1736424632357,-123.62210898,9.994e-05,2]
[348260263,1736424632369,-376.37789102,9.994e-05,2]
[348260265,1736424632378,-500.0,9.994e-05,2]
[348260267,1736424632387,-500.0,9.994e-05,2]
[348260269,1736424632396,-500.0,9.994e-05,2]
[348260270,1736424632406,-3926.04,9.994e-05,2]
[348260271,1736424632415,-500.0,9.994e-05,2]
[348260272,1736424632425,-500.0,9.994e-05,2]
[348260273,1736424632434,-500.0,9.994e-05,2]
[348260274,1736424632444,-500.0,9.994e-05,2]
[348260275,1736424632454,-500.0,9.994e-05,2]
[348260276,1736424632463,-731.29,9.994e-05,2]
[348260277,1736424632472,-500.0,9.994e-05,2]
[348260278,1736424632482,-500.0,9.994e-05,2]
[348260279,1736424632492,-562.38,9.994e-05,2]
[348260280,1736424632502,-885.75,9.994e-05,2]
[348260281,1736424632511,-500.0,9.994e-05,2]
[348260282,1736424632521,-500.0,9.994e-05,2]
[348260283,1736424632530,-500.0,9.994e-05,2]
[348260284,1736424632539,-500.0,9.994e-05,2]
[348260285,1736424632548,-500.0,9.994e-05,2]
[348260286,1736424632558,-500.0,9.994e-05,2]
[348260287,1736424632567,-831.99,9.994e-05,2]
[348260288,1736424632576,-500.0,9.994e-05,2]
[348260289,1736424632586,-500.0,9.994e-05,2]
[348260290,1736424632595,-500.0,9.994e-05,2]
[348260291,1736424632604,-500.0,9.994e-05,2]
[348260292,1736424632613,-650.07,9.994e-05,2]
[348260293,1736424632623,-500.0,9.994e-05,2]
[348260294,1736424632632,-500.0,9.994e-05,2]
[348260295,1736424632642,-500.0,9.994e-05,2]
[348260296,1736424632651,-500.0,9.994e-05,2]
[348260297,1736424632660,-500.0,9.994e-05,2]
[348260298,1736424632669,-500.0,9.994e-05,2]
[348260299,1736424632678,-500.0,9.994e-05,2]
[348260300,1736424632687,-500.0,9.994e-05,2]
[348260301,1736424632697,-657.66,9.994e-05,2]
[348260302,1736424632706,-500.0,9.994e-05,2]
[348260303,1736424632716,-592.83,9.994e-05,2]
[348260304,1736424632725,-500.0,9.994e-05,2]
[348260305,1736424632735,-500.0,9.994e-05,2]
[348260306,1736424632745,-202.28575945,9.994e-05,2]
[348260307,1736424632755,-493.578566,9.994e-05,2]
[348260308,1736424632765,-1009.25,9.994e-05,2]
[348260309,1736424632775,-559.71,9.994e-05,2]
[348260310,1736424632785,-500.0,9.994e-05,2]
[348260311,1736424632795,-500.0,9.994e-05,2]
[348260312,1736424632805,-943.25,9.994e-05,2]
[348260313,1736424632814,-500.0,9.994e-05,2]
[348260314,1736424632823,-683.22,9.994e-05,2]
[348260315,1736424632833,-500.0,9.994e-05,2]
[348260316,1736424632843,-500.0,9.994e-05,2]
[348260317,1736424632853,-500.0,9.994e-05,2]
[348260318,1736424632863,-500.0,9.994e-05,2]
[348260319,1736424632873,-616.777298,9.994e-05,2]
[348260320,1736424632882,-500.0,9.994e-05,2]
[348260321,1736424632891,-500.0,9.994e-05,2]
[348260322,1736424632900,-500.0,9.994e-05,2]
[348260323,1736424632909,-500.0,9.994e-05,2]
[348260324,1736424632919,-500.0,9.994e-05,2]
[348260325,1736424632929,-500.0,9.994e-05,2]
[348260326,1736424632938,-500.0,9.994e-05,2]
[348260327,1736424632949,-500.0,9.994e-05,2]
[348260328,1736424632959,-500.0,9.994e-05,2]
[348260329,1736424632968,-500.0,9.994e-05,2]
[348260330,1736424632978,-500.0,9.994e-05,2]
[348260331,1736424632987,-1109.82,9.994e-05,2]
[348260332,1736424632998,-500.0,9.994e-05,2]
[348260333,1736424633007,-500.0,9.994e-05,2]
[348260334,1736424633017,-500.0,9.994e-05,2]
[348260335,1736424633027,-500.0,9.994e-05,2]
[348260336,1736424633037,-584.65,9.994e-05,2]
[348260337,1736424633047,-500.0,9.994e-05,2]
[348260338,1736424633056,-500.0,9.994e-05,2]
[348260339,1736424633066,-500.0,9.994e-05,2]
[348260340,1736424633076,-500.0,9.994e-05,2]
[348260341,1736424633086,-729.41,9.994e-05,2]
[348260342,1736424633096,-1224.21,9.994e-05,2]
[348260343,1736424633106,-500.0,9.995e-05,2]
[348260344,1736424633117,-500.0,9.995e-05,2]
[348260345,1736424633126,-500.0,9.995e-05,2]
[348260346,1736424633136,-500.0,9.995e-05,2]
[348260347,1736424633146,-500.0,9.995e-05,2]
[348260348,1736424633156,-500.0,9.995e-05,2]
[348260349,1736424633167,-500.0,9.995e-05,2]
[348260350,1736424633176,-500.0,9.995e-05,2]
[348260351,1736424633186,-500.0,9.995e-05,2]
[348260352,1736424633196,-500.0,9.995e-05,2]
[348260353,1736424633206,-500.94860844,9.995e-05,2]
[348260354,1736424633216,-276.29773398,9.995e-05,2]
[348260355,1736424633226,-500.0,9.995e-05,2]
[348260356,1736424633236,-500.0,9.995e-05,2]
[348260357,1736424633247,-500.0,9.995e-05,2]
[348260358,1736424633257,-500.0,9.995e-05,2]
[348260359,1736424633267,-500.0,9.995e-05,2]
[348260360,1736424633277,-500.0,9.995e-05,2]
[348260361,1736424633287,-500.0,9.995e-05,2]
[348260362,1736424633296,-500.0,9.995e-05,2]
[348260363,1736424633306,-500.0,9.995e-05,2]
[348260364,1736424633316,-500.0,9.995e-05,2]
[348260365,1736424633325,-500.0,9.995e-05,2]
[348260366,1736424633335,-500.0,9.995e-05,2]
[348260367,1736424633344,-500.0,9.995e-05,2]
[348260368,1736424633354,-500.0,9.995e-05,2]
[348260369,1736424633364,-500.0,9.995e-05,2]
[348260370,1736424633373,-500.0,9.995e-05,2]
[348260371,1736424633383,-500.0,9.995e-05,2]
[348260372,1736424633393,-500.0,9.995e-05,2]
[348260373,1736424633403,-500.0,9.995e-05,2]
[348260374,1736424633413,-500.0,9.995e-05,2]
[348260375,1736424633422,-500.0,9.995e-05,2]
[348260376,1736424633431,-500.0,9.995e-05,2]
[348260377,1736424633442,-327.32330093,9.995e-05,2]
[348260378,1736424633452,-500.0,9.995e-05,2]
[348260379,1736424633462,-616.82743092,9.995e-05,2]
[348260380,1736424633471,-500.0,9.995e-05,2]
[348260381,1736424633481,-500.0,9.995e-05,2]
[348260382,1736424633490,-586.50151244,9.995e-05,2]
[348260383,1736424633500,-500.0,9.995e-05,2]
[348260384,1736424633509,-500.0,9.995e-05,2]
[348260385,1736424633518,-500.0,9.995e-05,2]
[348260386,1736424633528,-500.0,9.995e-05,2]
[348260387,1736424633538,-225.37352807,9.995e-05,2]
[348260388,1736424633547,-501.5459695,9.995e-05,2]
[348260389,1736424633557,-500.0,9.995e-05,2]
[348260390,1736424633567,-500.0,9.995e-05,2]
[348260391,1736424633577,-500.0,9.995e-05,2]
[348260392,1736424633588,-500.0,9.995e-05,2]
[348260393,1736424633597,-502.02910293,9.995e-05,2]
[348260394,1736424633607,-500.0,9.995e-05,2]
[348260395,1736424633617,-500.0,9.995e-05,2]
[348260396,1736424633626,-500.0,9.995e-05,2]
[348260397,1736424633636,-500.0,9.995e-05,2]
[348260398,1736424633645,-500.0,9.995e-05,2]
[348260399,1736424633655,-500.0,9.995e-05,2]
[348260400,1736424633665,-500.0,9.995e-05,2]
[348260401,1736424633675,-500.0,9.995e-05,2]
[348260402,1736424633685,-500.0,9.995e-05,2]
[348260403,1736424633694,-500.0,9.995e-05,2]
[348260404,1736424633705,-500.0,9.995e-05,2]
[348260405,1736424633715,-500.0,9.995e-05,2]
[348260406,1736424633725,-500.0,9.995e-05,2]
[348260407,1736424633734,-500.0,9.995e-05,2]
[348260408,1736424633745,-500.0,9.995e-05,2]
[348260409,1736424633755,-500.0,9.995e-05,2]
[348260410,1736424633765,-500.0,9.995e-05,2]
[348260411,1736424633775,-500.0,9.995e-05,2]
[348260412,1736424633784,-500.0,9.995e-05,2]
[348260413,1736424633794,-500.0,9.995e-05,2]
[348260414,1736424633804,-500.0,9.995e-05,2]
[348260415,1736424633813,-500.0,9.995e-05,2]
[348260416,1736424633823,-500.0,9.995e-05,2]
[348260417,1736424633833,-500.0,9.995e-05,2]
[348260418,1736424633843,-500.0,9.995e-05,2]
[348260419,1736424633853,-502.32048293,9.995e-05,2]
[348260420,1736424633863,-500.0,9.995e-05,2]
[348260421,1736424633873,-500.0,9.995e-05,2]
[348260422,1736424633882,-500.0,9.995e-05,2]
[348260423,1736424633892,-500.0,9.995e-05,2]
[348260424,1736424633901,-500.0,9.995e-05,2]
[348260425,1736424633911,-500.0,9.995e-05,2]
[348260426,1736424633920,-500.0,9.995e-05,2]
[348260427,1736424633930,-500.0,9.995e-05,2]
[348260428,1736424633939,-500.0,9.995e-05,2]
[348260429,1736424633950,-500.0,9.995e-05,2]
[348260430,1736424633959,-501.78328228,9.995e-05,2]
[348260431,1736424633969,-500.0,9.995e-05,2]
[348260432,1736424633979,-500.0,9.995e-05,2]
[348260433,1736424633988,-500.0,9.995e-05,2]
[348260434,1736424633999,-500.0,9.995e-05,2]
[348260435,1736424634008,-500.0,9.995e-05,2]
[348260436,1736424634018,-500.0,9.995e-05,2]
[348260437,1736424634027,-500.0,9.995e-05,2]
[348260438,1736424634037,-500.0,9.995e-05,2]
[348260439,1736424634046,-500.0,9.995e-05,2]
[348260440,1736424634055,-500.0,9.995e-05,2]
[348260441,1736424634065,-500.0,9.995e-05,2]
[348260442,1736424634074,-500.0,9.995e-05,2]
[348260443,1736424634083,-503.09691955,9.995e-05,2]
[348260444,1736424634092,-629.75507898,9.995e-05,2]
[348260445,1736424634102,-500.0,9.995e-05,2]
[348260446,1736424634112,-500.0,9.995e-05,2]
[348260447,1736424634121,-500.0,9.995e-05,2]
[348260448,1736424634131,-500.0,9.995e-05,2]
[348260449,1736424634140,-500.0,9.995e-05,2]
[348260450,1736424634150,-186.1108865,9.995e-05,2]
[348260451,1736424634159,-500.0,9.995e-05,2]
[348260452,1736424634169,-500.0,9.995e-05,2]
[348260453,1736424634178,-347.749056,9.995e-05,2]
[348260454,1736424634188,-500.0,9.995e-05,2]
[348260455,1736424634198,-500.0,9.995e-05,2]
[348260456,1736424634207,-500.0,9.995e-05,2]
[348260457,1736424634217,-542.52498139,9.995e-05,2]
[348260458,1736424634226,-500.0,9.995e-05,2]
[348260459,1736424634237,-500.0,9.995e-05,2]
[348260460,1736424634248,-500.0,9.995e-05,2]
[348260461,1736424634257,-500.0,9.995e-05,2]
[348260462,1736424634267,-500.0,9.995e-05,2]
[348260463,1736424634277,-500.0,9.995e-05,2]
[348260464,1736424634286,-500.0,9.995e-05,2]
[348260465,1736424634295,-500.0,9.995e-05,2]
[348260466,1736424634306,-500.0,9.995e-05,2]
[348260467,1736424634318,-500.0,9.995e-05,2]
[348260468,1736424634328,-500.0,9.995e-05,2]
[348260469,1736424634337,-502.81934229,9.995e-05,2]
[348260470,1736424634346,-552.15491691,9.995e-05,2]
[348260471,1736424634355,-520.43,9.995e-05,2]
[348260472,1736424634366,-500.0,9.995e-05,2]
[348260473,1736424634376,-500.0,9.995e-05,2]
[348260474,1736424634385,-500.0,9.995e-05,2]
[348260475,1736424634395,-500.0,9.995e-05,2]
[348260476,1736424634404,-500.0,9.995e-05,2]
[348260477,1736424634414,-500.0,9.995e-05,2]
[348260478,1736424634424,-500.0,9.995e-05,2]
[348260479,1736424634434,-500.0,9.995e-05,2]
[348260480,1736424634444,-500.0,9.995e-05,2]
[348260481,1736424634453,-500.0,9.995e-05,2]
[348260482,1736424634463,-500.0,9.995e-05,2]
[348260483,1736424634472,-500.0,9.995e-05,2]
[348260484,1736424634482,-500.0,9.995e-05,2]
[348260485,1736424634492,-500.0,9.995e-05,2]
[348260486,1736424634502,-500.0,9.995e-05,2]
[348260487,1736424634512,-500.0,9.995e-05,2]
[348260488,1736424634522,-500.0,9.995e-05,2]
[348260489,1736424634532,-500.0,9.995e-05,2]